[Event "Swedish Chess Championship 2021: Mastarklassen-Elit"]
[Site "Scandic Helsingborg Nord, Florettgatan 41, Helsingborg, Sweden"]
[Date "2021.07.10"]
[Round "8.2"]
[White "Nikolic, Vladan"]
[Black "Johansson, Thomas"]
[Result "0-1"]
[TimeControl "90 minutes for 40 moves + 30 minutes for the rest of the game + 30 seconds per move from move one."]
[WhiteFideId "1710702"]
[BlackFideId "1702998"]
[WhiteElo "2222"]
[BlackElo "2254"]

1. d4 {[%clk 01:30:56]} {[%emt 00:00:02]} g6 {[%clk 01:30:50]} {[%emt
00:00:11]} 2. e4 {[%clk 01:29:23]} {[%emt 00:02:03]} Nf6 {[%clk 01:27:39]}
{[%emt 00:03:41]} 3. e5 {[%clk 01:28:11]} {[%emt 00:01:42]} Nh5 {[%clk
01:24:15]} {[%emt 00:03:54]} 4. Be2 {[%clk 01:23:14]} {[%emt 00:05:26]} d6
{[%clk 01:24:23]} {[%emt 00:00:22]} 5. Bxh5 {[%clk 01:16:57]} {[%emt 00:06:47]}
gxh5 {[%clk 01:24:21]} {[%emt 00:00:32]} 6. exd6 {[%clk 01:11:12]} {[%emt
00:06:15]} Qxd6 {[%clk 01:24:16]} {[%emt 00:00:35]} 7. c3 {[%clk 01:10:30]}
{[%emt 00:01:12]} Bg4 {[%clk 01:15:00]} {[%emt 00:09:45]} 8. Ne2 {[%clk
01:00:23]} {[%emt 00:10:37]} Nd7 {[%clk 01:10:20]} {[%emt 00:05:10]} 9. Na3
{[%clk 00:57:51]} {[%emt 00:03:03]} O-O-O {[%clk 01:08:22]} {[%emt 00:02:28]}
10. Be3 {[%clk 00:56:26]} {[%emt 00:01:55]} Qa6 {[%clk 01:06:53]} {[%emt
00:01:59]} 11. h3 {[%clk 00:53:20]} {[%emt 00:03:35]} Bf5 {[%clk 01:06:18]}
{[%emt 00:01:05]} 12. Qb3 {[%clk 00:45:02]} {[%emt 00:08:47]} e6 {[%clk
01:00:36]} {[%emt 00:06:13]} 13. c4 {[%clk 00:31:39]} {[%emt 00:13:53]} Be4
{[%clk 00:54:59]} {[%emt 00:06:07]} 14. f3 {[%clk 00:30:24]} {[%emt 00:01:46]}
Bc6 {[%clk 00:51:40]} {[%emt 00:03:48]} 15. Nb5 {[%clk 00:27:40]} {[%emt
00:03:14]} b6 {[%clk 00:41:30]} {[%emt 00:10:41]} 16. a4 {[%clk 00:25:38]}
{[%emt 00:02:32]} Qb7 {[%clk 00:41:00]} {[%emt 00:00:59]} 17. O-O {[%clk
00:19:06]} {[%emt 00:07:02]} Rg8 {[%clk 00:40:18]} {[%emt 00:01:12]} 18. Kh1
{[%clk 00:19:26]} {[%emt 00:00:11]} Be7 {[%clk 00:35:24]} {[%emt 00:05:24]} 19.
Bg1 {[%clk 00:19:29]} {[%emt 00:00:26]} Rg5 {[%clk 00:33:22]} {[%emt 00:02:32]}
20. Nf4 {[%clk 00:16:13]} {[%emt 00:03:47]} Rf5 {[%clk 00:29:44]} {[%emt
00:04:09]} 21. Bh2 {[%clk 00:15:49]} {[%emt 00:00:53]} a6 {[%clk 00:27:38]}
{[%emt 00:02:36]} 22. Qc2 {[%clk 00:12:21]} {[%emt 00:03:58]} Bg5 {[%clk
00:23:34]} {[%emt 00:04:34]} 23. Nxh5 {[%clk 00:06:43]} {[%emt 00:06:08]} axb5
{[%clk 00:18:02]} {[%emt 00:06:02]} 24. axb5 {[%clk 00:06:54]} {[%emt
00:00:19]} Bxf3 {[%clk 00:18:03]} {[%emt 00:00:29]} 25. gxf3 {[%clk 00:05:09]}
{[%emt 00:02:15]} Be3 {[%clk 00:16:40]} {[%emt 00:01:52]} 26. Qe2 {[%clk
00:04:17]} {[%emt 00:01:22]} Bxd4 {[%clk 00:15:24]} {[%emt 00:01:46]} 27. Ng3
{[%clk 00:04:27]} {[%emt 00:00:20]} Re5 {[%clk 00:14:59]} {[%emt 00:00:55]} 28.
Ne4 {[%clk 00:04:30]} {[%emt 00:00:27]} Rh5 {[%clk 00:15:04]} {[%emt 00:00:24]}
29. Qg2 {[%clk 00:02:55]} {[%emt 00:02:05]} f5 {[%clk 00:14:56]} {[%emt
00:00:38]} 30. Ng3 {[%clk 00:03:24]} {[%emt 00:00:01]} Rh4 {[%clk 00:14:21]}
{[%emt 00:01:05]} 31. Ra3 {[%clk 00:03:24]} {[%emt 00:00:31]} Rg8 {[%clk
00:13:00]} {[%emt 00:01:50]} 32. Rfa1 {[%clk 00:03:37]} {[%emt 00:00:17]} Rf4
{[%clk 00:11:57]} {[%emt 00:01:33]} 33. Qe2 {[%clk 00:03:09]} {[%emt 00:00:58]}
Rg6 {[%clk 00:10:46]} {[%emt 00:01:41]} 34. Nh5 {[%clk 00:02:27]} {[%emt
00:01:12]} Rh4 {[%clk 00:06:43]} {[%emt 00:04:33]} 35. Ra7 {[%clk 00:01:56]}
{[%emt 00:01:01]} Qxa7 {[%clk 00:06:23]} {[%emt 00:00:51]} 36. Rxa7 {[%clk
00:02:11]} {[%emt 00:00:14]} Rxh3 {[%clk 00:06:37]} {[%emt 00:00:15]} 37. Ra1
{[%clk 00:00:39]} {[%emt 00:02:03]} Rxh5 {[%clk 00:06:30]} {[%emt 00:00:37]} 38.
Rd1 {[%clk 00:00:32]} {[%emt 00:00:38]} Bc5 {[%clk 00:06:31]} {[%emt 00:00:29]}
39. b4 {[%clk 00:00:35]} {[%emt 00:00:28]} Bd6 {[%clk 00:05:37]} {[%emt
00:01:23]} 40. Rxd6 {[%clk 00:00:32]} {[%emt 00:00:33]} cxd6 {[%clk 00:05:51]}
{[%emt 00:00:16]} 41. c5 {[%clk 00:20:27]} {[%emt 00:10:36]} Rgh6 {[%clk
00:25:58]} {[%emt 00:10:22]} 42. Qd3 {[%clk 00:20:19]} {[%emt 00:00:38]} Rxh2+
{[%clk 00:24:25]} {[%emt 00:02:03]} 43. Kg1 {[%clk 00:20:34]} {[%emt 00:00:15]}
Rh1+ {[%clk 00:22:55]} {[%emt 00:01:59]} 44. Kg2 {[%clk 00:21:02]} {[%emt
00:00:02]} f4 {[%clk 00:23:06]} {[%emt 00:00:19]} 45. cxd6 {[%clk 00:21:12]}
{[%emt 00:00:20]} R6h2# {[%clk 00:23:29]} {[%emt 00:00:06]} 0-1

[Event "Swedish Chess Championship 2021: Mastarklassen-Elit"]
[Site "Scandic Helsingborg Nord, Florettgatan 41, Helsingborg, Sweden"]
[Date "2021.07.10"]
[Round "8.3"]
[White "Thorn, Eric"]
[Black "Furhoff, Johan"]
[Result "1/2-1/2"]
[TimeControl "90 minutes for 40 moves + 30 minutes for the rest of the game + 30 seconds per move from move one."]
[WhiteTitle "FM"]
[BlackTitle "IM"]
[WhiteFideId "1710729"]
[BlackFideId "1701797"]
[WhiteElo "2271"]
[BlackElo "2324"]

1. e4 {[%clk 01:30:58]} {[%emt 00:00:01]} c6 {[%clk 01:30:38]} {[%emt
00:00:23]} 2. d4 {[%clk 01:26:57]} {[%emt 00:04:31]} d5 {[%clk 01:31:03]}
{[%emt 00:00:05]} 3. e5 {[%clk 01:27:22]} {[%emt 00:00:04]} Bf5 {[%clk
01:31:21]} {[%emt 00:00:13]} 4. Nd2 {[%clk 01:27:44]} {[%emt 00:00:08]} e6
{[%clk 01:31:17]} {[%emt 00:00:35]} 5. Nb3 {[%clk 01:27:16]} {[%emt 00:00:57]}
Nd7 {[%clk 01:25:33]} {[%emt 00:06:14]} 6. Nf3 {[%clk 01:27:31]} {[%emt
00:00:14]} Ne7 {[%clk 01:25:00]} {[%emt 00:01:03]} 7. Be2 {[%clk 01:27:29]}
{[%emt 00:00:32]} Ng6 {[%clk 01:17:52]} {[%emt 00:07:38]} 8. O-O {[%clk
01:19:38]} {[%emt 00:08:21]} h5 {[%clk 00:54:22]} {[%emt 00:24:00]} 9. Be3
{[%clk 00:58:22]} {[%emt 00:21:47]} f6 {[%clk 00:45:27]} {[%emt 00:09:24]} 10.
exf6 {[%clk 00:53:00]} {[%emt 00:05:53]} gxf6 {[%clk 00:43:31]} {[%emt
00:02:26]} 11. Bd3 {[%clk 00:42:47]} {[%emt 00:10:42]} Be4 {[%clk 00:39:42]}
{[%emt 00:04:20]} 12. Re1 {[%clk 00:28:40]} {[%emt 00:14:37]} Be7 {[%clk
00:24:30]} {[%emt 00:15:42]} 13. Bc1 {[%clk 00:24:09]} {[%emt 00:05:02]} f5
{[%clk 00:23:07]} {[%emt 00:01:53]} 14. Ne5 {[%clk 00:22:04]} {[%emt 00:02:34]}
Ngxe5 {[%clk 00:16:39]} {[%emt 00:06:57]} 15. dxe5 {[%clk 00:22:31]} {[%emt
00:00:03]} Bxd3 {[%clk 00:16:26]} {[%emt 00:00:42]} 16. Qxd3 {[%clk 00:21:36]}
{[%emt 00:01:26]} c5 {[%clk 00:16:30]} {[%emt 00:00:27]} 17. c4 {[%clk
00:20:35]} {[%emt 00:01:31]} Nb6 {[%clk 00:16:45]} {[%emt 00:00:15]} 18. Na5
{[%clk 00:16:36]} {[%emt 00:04:28]} Qc7 {[%clk 00:13:11]} {[%emt 00:04:03]} 19.
cxd5 {[%clk 00:14:30]} {[%emt 00:02:36]} Nxd5 {[%clk 00:11:41]} {[%emt
00:02:00]} 20. Qb5+ {[%clk 00:09:40]} {[%emt 00:05:20]} Kf7 {[%clk 00:11:23]}
{[%emt 00:00:49]} 21. Nxb7 {[%clk 00:03:33]} {[%emt 00:06:37]} Rab8 {[%clk
00:11:37]} {[%emt 00:00:16]} 22. Nd6+ {[%clk 00:03:56]} {[%emt 00:00:07]} Qxd6
{[%clk 00:11:43]} {[%emt 00:00:24]} 23. exd6 {[%clk 00:04:18]} {[%emt
00:00:08]} Rxb5 {[%clk 00:12:10]} {[%emt 00:00:03]} 24. dxe7 {[%clk 00:04:41]}
{[%emt 00:00:07]} Kxe7 {[%clk 00:10:23]} {[%emt 00:02:18]} 25. Bg5+ {[%clk
00:03:28]} {[%emt 00:01:41]} Kd6 {[%clk 00:09:44]} {[%emt 00:01:10]} 26. Rad1
{[%clk 00:03:13]} {[%emt 00:00:45]} Rg8 {[%clk 00:07:39]} {[%emt 00:02:34]} 27.
Bf6 {[%clk 00:03:04]} {[%emt 00:00:40]} Rg6 {[%clk 00:06:10]} {[%emt 00:01:59]}
28. Be5+ {[%clk 00:03:24]} {[%emt 00:00:10]} Kc6 {[%clk 00:06:36]} {[%emt
00:00:04]} 29. Rd3 {[%clk 00:02:33]} {[%emt 00:01:20]} Ra5 {[%clk 00:05:47]}
{[%emt 00:01:19]} 30. a3 {[%clk 00:02:22]} {[%emt 00:00:42]} Ra4 {[%clk
00:05:44]} {[%emt 00:00:33]} 31. f3 {[%clk 00:00:54]} {[%emt 00:01:58]} a5
{[%clk 00:02:52]} {[%emt 00:03:22]} 32. Rc1 {[%clk 00:00:48]} {[%emt 00:00:36]}
h4 {[%clk 00:03:06]} {[%emt 00:00:16]} 33. Kf2 {[%clk 00:00:35]} {[%emt
00:00:43]} f4 {[%clk 00:03:22]} {[%emt 00:00:14]} 34. Rd4 {[%clk 00:00:44]}
{[%emt 00:00:22]} Nb6 {[%clk 00:01:51]} {[%emt 00:02:00]} 35. Rd6+ {[%clk
00:00:46]} {[%emt 00:00:28]} Kb5 {[%clk 00:02:03]} {[%emt 00:00:18]} 36. Rd8
{[%clk 00:00:43]} {[%emt 00:00:33]} Rg5 {[%clk 00:01:41]} {[%emt 00:00:52]} 37.
Bc7 {[%clk 00:00:38]} {[%emt 00:00:34]} Nd5 {[%clk 00:02:00]} {[%emt 00:00:12]}
38. Rb8+ {[%clk 00:00:37]} {[%emt 00:00:31]} Kc6 {[%clk 00:02:26]} {[%emt
00:00:04]} 39. Bd8 {[%clk 00:00:41]} {[%emt 00:00:25]} Rg8 {[%clk 00:02:49]}
{[%emt 00:00:07]} 40. Bc7 {[%clk 00:00:35]} {[%emt 00:00:38]} Rg5 {[%clk
00:02:23]} {[%emt 00:00:55]} 41. Bd8 {[%clk 00:27:19]} {[%emt 00:03:46]} Rg8
{[%clk 00:22:13]} {[%emt 00:10:40]} 1/2-1/2

[Event "Swedish Chess Championship 2021: Mastarklassen-Elit"]
[Site "Scandic Helsingborg Nord, Florettgatan 41, Helsingborg, Sweden"]
[Date "2021.07.10"]
[Round "8.4"]
[White "Lindberg, Bengt"]
[Black "Zadruzny, Nicolaj"]
[Result "1-0"]
[TimeControl "90 minutes for 40 moves + 30 minutes for the rest of the game + 30 seconds per move from move one."]
[WhiteTitle "IM"]
[BlackTitle "FM"]
[WhiteFideId "1700359"]
[BlackFideId "1709550"]
[WhiteElo "2392"]
[BlackElo "2333"]

1. e4 {[%clk 00:53:30]} e5 {[%clk 01:10:40]} 2. Nf3 {[%clk 00:53:30]} Nc6
{[%clk 01:10:40]} 3. Nc3 {[%clk 00:53:30]} Nf6 {[%clk 01:10:40]} 4. Bb5 {[%clk
00:53:30]} Bd6 {[%clk 01:10:40]} 5. O-O {[%clk 00:53:30]} O-O {[%clk 01:10:40]}
6. d3 {[%clk 00:53:30]} h6 {[%clk 01:10:40]} 7. a3 {[%clk 00:53:30]} Re8 {[%clk
01:10:40]} 8. h3 {[%clk 00:53:30]} Bf8 {[%clk 01:10:40]} 9. Bc4 {[%clk
00:53:30]} d6 {[%clk 01:10:40]} 10. Nd5 {[%clk 00:53:30]} Nxd5 {[%clk
01:10:40]} 11. Bxd5 {[%clk 00:53:30]} Ne7 {[%clk 01:10:40]} 12. Bb3 {[%clk
00:53:30]} Ng6 {[%clk 01:10:40]} 13. Re1 {[%clk 00:53:30]} Qf6 {[%clk
01:10:40]} 14. Nh2 {[%clk 00:53:30]} Nf4 {[%clk 01:10:40]} 15. Qf3 {[%clk
00:53:30]} g5 {[%clk 01:10:40]} 16. Ng4 {[%clk 00:53:30]} Qg6 {[%clk 01:10:40]}
17. Ne3 {[%clk 00:53:30]} h5 {[%clk 01:10:40]} 18. g4 {[%clk 00:53:30]} h4
{[%clk 01:10:40]} 19. Nf5 {[%clk 00:53:30]} Bg7 {[%clk 01:10:40]} 20. Kh2
{[%clk 00:53:30]} Qf6 {[%clk 01:10:40]} 21. Bd2 {[%clk 00:53:30]} Be6 {[%clk
01:10:40]} 22. Bc3 {[%clk 00:53:30]} Qd8 {[%clk 01:10:40]} 23. Rad1 {[%clk
00:53:30]} c5 {[%clk 01:10:40]} 24. Bc4 {[%clk 00:53:30]} Qc7 {[%clk 01:10:40]}
25. Ne3 {[%clk 00:53:30]} d5 {[%clk 01:10:40]} 26. exd5 {[%clk 00:53:30]} e4
{[%clk 01:10:40]} 27. dxe4 {[%clk 00:53:30]} Nxd5+ {[%clk 01:10:40]} 28. Kg1
{[%clk 00:53:30]} Nxe3 {[%clk 01:10:40]} 29. Qxe3 {[%clk 00:53:30]} Bxc4 {[%clk
01:10:40]} 30. Bxg7 {[%clk 00:53:30]} Kxg7 {[%clk 01:10:40]} 31. Qc3+ {[%clk
00:53:30]} Re5 {[%clk 01:10:40]} 32. Qxc4 {[%clk 00:53:30]} Rae8 {[%clk
01:10:40]} 33. Re3 {[%clk 00:53:30]} b6 {[%clk 01:10:40]} 34. Rd5 {[%clk
00:53:30]} f6 {[%clk 01:10:40]} 35. Qd3 {[%clk 00:53:30]} R8e7 {[%clk
01:10:40]} 36. c4 {[%clk 00:53:30]} R5e6 {[%clk 01:10:40]} 37. e5 {[%clk
00:53:30]} fxe5 {[%clk 01:10:40]} 38. Qf5 {[%clk 00:53:30]} Kh6 {[%clk
01:10:40]} 39. Rf3 {[%clk 00:53:30]} Qb8 {[%clk 01:10:40]} 40. Rfd3 {[%clk
00:53:30]} Qg8 {[%clk 01:10:40]} 41. Rd6 {[%clk 00:53:30]} Qg6 {[%clk
01:10:40]} 42. Qf8+ {[%clk 00:53:30]} Qg7 {[%clk 01:10:40]} 43. Qc8 {[%clk
00:53:30]} Qf7 {[%clk 01:10:40]} 44. Qh8+ {[%clk 00:53:30]} Qh7 {[%clk
01:10:40]} 45. Qxe5 {[%clk 00:53:30]} Qxd3 {[%clk 01:10:40]} 46. Rxe6+ {[%clk
00:53:30]} Rxe6 {[%clk 01:10:40]} 47. Qxe6+ {[%clk 00:53:30]} Kg7 {[%clk
01:10:40]} 48. Kg2 {[%clk 00:53:30]} Qd4 {[%clk 01:10:40]} 49. b4 {[%clk
00:53:30]} cxb4 {[%clk 01:10:40]} 50. axb4 {[%clk 00:53:30]} a5 {[%clk
01:10:40]} 51. bxa5 {[%clk 00:53:30]} bxa5 {[%clk 01:10:40]} 52. Qf5 {[%clk
00:53:30]} Qd8 {[%clk 01:10:40]} 53. Qe5+ {[%clk 00:53:30]} Kf7 {[%clk
01:10:40]} 54. Qf5+ {[%clk 00:53:30]} Ke8 {[%clk 01:10:40]} 55. c5 {[%clk
00:53:30]} a4 {[%clk 01:10:40]} 56. c6 {[%clk 00:53:30]} a3 {[%clk 01:10:40]}
57. Qe6+ {[%clk 00:53:30]} Qe7 {[%clk 01:10:40]} 58. Qg8+ {[%clk 00:53:30]} Qf8
{[%clk 01:10:40]} 59. Qxf8+ {[%clk 00:53:30]} {Clock annotations are not
correct in this game.} 1-0

[Event "Swedish Chess Championship 2021: Mastarklassen-Elit"]
[Site "Scandic Helsingborg Nord, Florettgatan 41, Helsingborg, Sweden"]
[Date "2021.07.10"]
[Round "8.5"]
[White "Jogstad, Martin"]
[Black "Bellon Lopez, Juan Manuel"]
[Result "1/2-1/2"]
[TimeControl "90 minutes for 40 moves + 30 minutes for the rest of the game + 30 seconds per move from move one."]
[WhiteTitle "FM"]
[BlackTitle "GM"]
[WhiteFideId "1715364"]
[BlackFideId "2200031"]
[WhiteElo "2301"]
[BlackElo "2327"]

1. c4 {[%clk 01:30:42]} {[%emt 00:00:16]} e5 {[%clk 01:30:53]} {[%emt
00:00:09]} 2. g3 {[%clk 01:30:54]} {[%emt 00:00:16]} Nc6 {[%clk 01:31:18]}
{[%emt 00:00:05]} 3. Bg2 {[%clk 01:31:00]} {[%emt 00:00:24]} Nf6 {[%clk
01:31:42]} {[%emt 00:00:07]} 4. Nc3 {[%clk 01:31:13]} {[%emt 00:00:15]} Bc5
{[%clk 01:32:07]} {[%emt 00:00:07]} 5. e3 {[%clk 01:31:25]} {[%emt 00:00:17]}
d5 {[%clk 01:32:27]} {[%emt 00:00:12]} 6. cxd5 {[%clk 01:27:57]} {[%emt
00:03:57]} Nb4 {[%clk 01:32:47]} {[%emt 00:00:10]} 7. d3 {[%clk 01:27:20]}
{[%emt 00:01:07]} Nbxd5 {[%clk 01:28:30]} {[%emt 00:04:48]} 8. Nxd5 {[%clk
01:21:50]} {[%emt 00:05:59]} Nxd5 {[%clk 01:27:56]} {[%emt 00:01:04]} 9. Nf3
{[%clk 01:19:52]} {[%emt 00:02:28]} Bb4+ {[%clk 01:17:42]} {[%emt 00:10:44]} 10.
Bd2 {[%clk 01:19:09]} {[%emt 00:01:13]} Qe7 {[%clk 01:15:02]} {[%emt 00:03:10]}
11. O-O {[%clk 01:17:33]} {[%emt 00:02:03]} Bg4 {[%clk 01:07:19]} {[%emt
00:08:16]} 12. Qa4+ {[%clk 01:01:52]} {[%emt 00:16:11]} Bd7 {[%clk 00:58:47]}
{[%emt 00:09:02]} 13. Qb3 {[%clk 01:01:28]} {[%emt 00:00:54]} Be6 {[%clk
00:53:48]} {[%emt 00:05:29]} 14. e4 {[%clk 00:56:43]} {[%emt 00:05:16]} Nc3
{[%clk 00:51:35]} {[%emt 00:02:43]} 15. Qc2 {[%clk 00:56:25]} {[%emt 00:00:45]}
Ne2+ {[%clk 00:49:15]} {[%emt 00:02:53]} 16. Kh1 {[%clk 00:56:43]} {[%emt
00:00:12]} Bxd2 {[%clk 00:48:31]} {[%emt 00:01:14]} 17. Qxd2 {[%clk 00:55:56]}
{[%emt 00:01:16]} Nd4 {[%clk 00:48:54]} {[%emt 00:00:07]} 18. Nxd4 {[%clk
00:43:48]} {[%emt 00:12:38]} exd4 {[%clk 00:49:16]} {[%emt 00:00:08]} 19. f4
{[%clk 00:42:36]} {[%emt 00:01:41]} f6 {[%clk 00:42:33]} {[%emt 00:07:15]} 20.
e5 {[%clk 00:36:35]} {[%emt 00:06:31]} O-O-O {[%clk 00:33:29]} {[%emt
00:09:34]} 21. exf6 {[%clk 00:33:49]} {[%emt 00:03:16]} Qxf6 {[%clk 00:33:04]}
{[%emt 00:00:55]} 22. Qa5 {[%clk 00:31:57]} {[%emt 00:02:21]} Kb8 {[%clk
00:28:32]} {[%emt 00:05:03]} 23. Qb5 {[%clk 00:18:35]} {[%emt 00:13:52]} Bc8
{[%clk 00:28:17]} {[%emt 00:00:45]} 24. Rfe1 {[%clk 00:18:23]} {[%emt
00:00:42]} Rd6 {[%clk 00:24:27]} {[%emt 00:04:20]} 25. Rac1 {[%clk 00:16:17]}
{[%emt 00:02:37]} Rhd8 {[%clk 00:20:56]} {[%emt 00:04:01]} 26. Qc5 {[%clk
00:14:38]} {[%emt 00:02:07]} Qf7 {[%clk 00:19:46]} {[%emt 00:01:41]} 27. Kg1
{[%clk 00:07:46]} {[%emt 00:07:23]} Be6 {[%clk 00:14:10]} {[%emt 00:06:06]} 28.
b3 {[%clk 00:05:54]} {[%emt 00:02:21]} b6 {[%clk 00:11:21]} {[%emt 00:03:20]}
29. Qe5 {[%clk 00:05:28]} {[%emt 00:00:55]} Bd5 {[%clk 00:10:51]} {[%emt
00:01:00]} 30. Bxd5 {[%clk 00:05:32]} {[%emt 00:00:26]} Rxd5 {[%clk 00:11:19]}
{[%emt 00:00:02]} 31. Qe7 {[%clk 00:05:47]} {[%emt 00:00:14]} R8d7 {[%clk
00:11:27]} {[%emt 00:00:23]} 32. Qxf7 {[%clk 00:05:14]} {[%emt 00:01:04]} Rxf7
{[%clk 00:11:52]} {[%emt 00:00:05]} 33. Kg2 {[%clk 00:04:44]} {[%emt 00:00:59]}
a5 {[%clk 00:10:13]} {[%emt 00:02:09]} 34. Kf3 {[%clk 00:03:42]} {[%emt
00:01:32]} Kc8 {[%clk 00:07:55]} {[%emt 00:02:48]} 35. g4 {[%clk 00:03:22]}
{[%emt 00:00:50]} h5 {[%clk 00:07:41]} {[%emt 00:00:44]} 36. h3 {[%clk
00:03:17]} {[%emt 00:00:35]} Kd7 {[%clk 00:07:49]} {[%emt 00:00:22]} 37. Ke4
{[%clk 00:02:21]} {[%emt 00:01:26]} Rd6 {[%clk 00:05:34]} {[%emt 00:02:46]} 38.
f5 {[%clk 00:02:36]} {[%emt 00:00:14]} g6 {[%clk 00:04:52]} {[%emt 00:01:12]}
39. Kf4 {[%clk 00:01:52]} {[%emt 00:01:14]} hxg4 {[%clk 00:02:57]} {[%emt
00:02:25]} 40. hxg4 {[%clk 00:02:15]} {[%emt 00:00:06]} gxf5 {[%clk 00:00:34]}
{[%emt 00:02:53]} 41. gxf5 {[%clk 00:01:53]} {[%emt 00:00:51]} a4 {[%clk
00:27:45]} {[%emt 00:03:19]} 42. bxa4 {[%clk 00:29:54]} {[%emt 00:02:30]} Rh6
{[%clk 00:21:19]} {[%emt 00:06:56]} 43. a5 {[%clk 00:06:38]} {[%emt 00:23:46]}
Rh2 {[%clk 00:10:31]} {[%emt 00:11:18]} 44. Re5 {[%clk 00:03:50]} {[%emt
00:03:17]} Kd6 {[%clk 00:06:43]} {[%emt 00:04:19]} 45. Re6+ {[%clk 00:04:13]}
{[%emt 00:00:07]} Kd5 {[%clk 00:07:09]} {[%emt 00:00:05]} 46. Re5+ {[%clk
00:04:30]} {[%emt 00:00:13]} Kd6 {[%clk 00:07:35]} {[%emt 00:00:03]} 47. Rce1
{[%clk 00:03:46]} {[%emt 00:01:14]} bxa5 {[%clk 00:06:35]} {[%emt 00:01:31]} 48.
R1e2 {[%clk 00:01:42]} {[%emt 00:02:33]} Rh3 {[%clk 00:05:26]} {[%emt
00:01:39]} 49. Re6+ {[%clk 00:01:26]} {[%emt 00:00:47]} Kd7 {[%clk 00:04:46]}
{[%emt 00:01:10]} 50. Ke4 {[%clk 00:00:55]} {[%emt 00:01:00]} c5 {[%clk
00:02:37]} {[%emt 00:02:41]} 51. Re5 {[%clk 00:00:34]} {[%emt 00:00:51]} Re7
{[%clk 00:01:20]} {[%emt 00:01:46]} 52. Rxe7+ {[%clk 00:00:36]} {[%emt
00:00:28]} Kxe7 {[%emt 00:00:04]} 53. Kd5+ {[%clk 00:00:32]} {[%emt 00:00:34]}
Re3 {[%clk 00:01:33]} {[%emt 00:00:43]} 54. Rd2 {[%clk 00:00:52]} {[%emt
00:00:10]} Rf3 {[%clk 00:01:12]} {[%emt 00:00:52]} 55. Kxc5 {[%clk 00:01:08]}
{[%emt 00:00:14]} Rxf5+ {[%clk 00:01:25]} {[%emt 00:00:17]} 56. Kxd4 {[%clk
00:01:22]} {[%emt 00:00:15]} Kd6 {[%clk 00:01:53]} {[%emt 00:00:01]} 57. Rc2
{[%clk 00:01:12]} {[%emt 00:00:39]} Rf4+ {[%clk 00:02:11]} {[%emt 00:00:14]} 58.
Ke3 {[%clk 00:01:15]} {[%emt 00:00:26]} Ra4 {[%clk 00:02:07]} {[%emt 00:00:34]}
59. Rb2 {[%clk 00:00:34]} {[%emt 00:01:11]} Kc5 {[%clk 00:01:56]} {[%emt
00:00:40]} 60. Rc2+ {[%clk 00:00:52]} {[%emt 00:00:13]} Kd5 {[%clk 00:02:19]}
{[%emt 00:00:07]} 61. Rh2 {[%clk 00:00:59]} {[%emt 00:00:23]} Ra3 {[%clk
00:02:10]} {[%emt 00:00:40]} 62. Rg2 {[%clk 00:01:21]} {[%emt 00:00:08]} Ra4
{[%clk 00:02:05]} {[%emt 00:00:34]} 63. Rf2 {[%clk 00:01:48]} {[%emt 00:00:04]}
Ra3 {[%clk 00:02:31]} {[%emt 00:00:04]} 64. Re2 {[%clk 00:02:13]} {[%emt
00:00:05]} Ra4 {[%clk 00:02:54]} {[%emt 00:00:07]} 65. Rd2 {[%clk 00:02:38]}
{[%emt 00:00:05]} Ra3 {[%clk 00:01:44]} {[%emt 00:01:40]} 66. Rh2 {[%clk
00:03:03]} {[%emt 00:00:04]} Ra4 {[%clk 00:02:04]} {[%emt 00:00:10]} 67. Rg2
{[%clk 00:03:31]} {[%emt 00:00:03]} Ra3 {[%clk 00:02:29]} {[%emt 00:00:05]} 68.
Rf2 {[%clk 00:03:59]} {[%emt 00:00:02]} Ra4 {[%clk 00:02:51]} {[%emt 00:00:07]}
69. Re2 {[%clk 00:04:24]} {[%emt 00:00:06]} Ra3 {[%clk 00:03:10]} {[%emt
00:00:11]} 70. Rc2 {[%clk 00:01:13]} {[%emt 00:03:40]} Ra4 {[%clk 00:03:14]}
{[%emt 00:00:26]} 71. Rh2 {[%clk 00:01:21]} {[%emt 00:00:22]} Ra3 {[%clk
00:03:36]} {[%emt 00:00:09]} 72. Rh5+ {[%clk 00:01:34]} {[%emt 00:00:16]} Kd6
{[%clk 00:03:49]} {[%emt 00:00:18]} 73. Ke4 {[%clk 00:01:04]} {[%emt 00:00:59]}
Rxa2 {[%clk 00:04:13]} {[%emt 00:00:08]} 74. d4 {[%clk 00:01:11]} {[%emt
00:00:23]} a4 {[%clk 00:04:19]} {[%emt 00:00:24]} 75. Rh6+ {[%clk 00:01:34]}
{[%emt 00:00:07]} Kc7 {[%clk 00:04:32]} {[%emt 00:00:16]} 76. Kd5 {[%clk
00:01:38]} {[%emt 00:00:26]} a3 {[%clk 00:04:46]} {[%emt 00:00:17]} 77. Rc6+
{[%clk 00:01:39]} {[%emt 00:00:28]} Kb7 {[%clk 00:04:49]} {[%emt 00:00:28]} 78.
Rc3 {[%clk 00:01:55]} {[%emt 00:00:13]} Kb6 {[%clk 00:04:57]} {[%emt 00:00:23]}
79. Rb3+ {[%clk 00:01:06]} {[%emt 00:01:20]} Ka5 {[%clk 00:03:30]} {[%emt
00:01:57]} 80. Kd6 {[%clk 00:00:39]} {[%emt 00:00:57]} Ka4 {[%clk 00:03:46]}
{[%emt 00:00:13]} 81. Rb7 {[%clk 00:00:51]} {[%emt 00:00:18]} Rb2 {[%clk
00:03:43]} {[%emt 00:00:33]} 82. Ra7+ {[%clk 00:01:14]} {[%emt 00:00:07]} Kb3
{[%clk 00:04:08]} {[%emt 00:00:05]} 83. d5 {[%clk 00:01:16]} {[%emt 00:00:28]}
a2 {[%clk 00:04:31]} {[%emt 00:00:07]} 84. Kd7 {[%clk 00:01:19]} {[%emt
00:00:27]} Rb1 {[%clk 00:04:24]} {[%emt 00:00:37]} 85. d6 {[%clk 00:01:37]}
{[%emt 00:00:12]} a1=Q {[%clk 00:04:44]} {[%emt 00:00:10]} 86. Rxa1 {[%clk
00:01:59]} {[%emt 00:00:08]} Rxa1 {[%clk 00:05:10]} {[%emt 00:00:04]} 87. Ke8
{[%clk 00:02:19]} {[%emt 00:00:10]} Re1+ {[%clk 00:05:34]} {[%emt 00:00:06]} 88.
Kf7 {[%clk 00:02:38]} {[%emt 00:00:09]} Rd1 {[%clk 00:05:59]} {[%emt 00:00:07]}
89. Ke7 {[%clk 00:02:57]} {[%emt 00:00:11]} Kc4 {[%clk 00:06:25]} {[%emt
00:00:05]} 90. d7 {[%clk 00:03:22]} {[%emt 00:00:05]} Kc5 {[%clk 00:06:51]}
{[%emt 00:00:04]} 91. d8=Q {[%clk 00:03:45]} {[%emt 00:00:08]} Rxd8 {[%clk
00:07:18]} {[%emt 00:00:03]} 92. Kxd8 {[%emt 00:00:06]} Kd4 {[%emt 00:00:03]}
1/2-1/2